bitfinex/quotes_ETHUSD_20241212
["timestamp","ask_amount","ask_price","bid_price","bid_amount"]
[1734037336105,0.8211,3883.4,3882.6,2.31802]
[1734037336290,0.8211,3883.4,3883.0,2.31777]
[1734037336931,0.8211,3883.4,3883.1,2.31769]
[1734037337279,0.8211,3883.4,3882.9,2.31783]
[1734037338080,0.8211,3883.4,3882.6,2.31798]
[1734037338617,0.8211,3883.4,3882.7,2.31797]
[1734037339184,0.02574005,3883.3,3882.1,0.797]
[1734037339439,0.8084,3883.2,3882.1,0.55955885]
[1734037339617,0.8084,3883.2,3882.4,2.31815]
[1734037339783,0.8084,3883.2,3882.2,3.0]
[1734037339984,0.8084,3883.2,3882.6,2.318]
[1734037341708,0.8084,3883.2,3882.4,2.31813]
[1734037343695,0.8084,3883.2,3882.3,3.0]
[1734037344101,1.146758,3883.2,3882.3,2.31819]
[1734037344300,1.146758,3883.2,3882.2,0.50596485]
[1734037344501,1.146758,3883.2,3882.4,2.31815]
[1734037344987,1.146758,3883.2,3882.5,2.31807]
[1734037345221,0.7733,3883.7,3882.6,0.7983]
[1734037345555,2.6855722,3884.4,3883.5,3.0]
[1734037345556,1.84487655,3884.2,3883.5,3.0]
[1734037345722,2.14315311,3884.6,3883.8,3.0]
[1734037345723,0.7553,3884.6,3883.8,3.0]
[1734037345923,0.7553,3885.3,3884.0,2.31719]
[1734037346175,0.7553,3885.3,3884.1,3.77973685]
[1734037346473,0.7553,3885.3,3884.2,3.0]
[1734037346864,0.7553,3885.3,3884.1,0.77973685]
[1734037346865,0.02574005,3885.2,3884.1,0.77973685]
[1734037347166,0.7553,3885.0,3883.8,5.31726]
[1734037347321,0.7553,3885.0,3883.8,2.31726]
[1734037347322,0.8201,3884.8,3883.8,2.31726]
[1734037347520,0.34198601,3884.7,3883.8,2.31726]
[1734037348026,0.8201,3884.8,3883.4,5.48017848]
[1734037348246,0.8201,3884.8,3883.5,3.55]
[1734037348574,0.8201,3884.8,3883.6,5.31742]
[1734037348715,0.8201,3884.8,3884.0,2.31715]
[1734037349375,0.84584005,3884.8,3884.0,2.31715]
[1734037349585,0.8201,3884.8,3884.5,2.31687]
[1734037349731,0.8201,3884.8,3884.1,3.0]
[1734037349929,0.8201,3884.8,3884.4,2.3169]
[1734037350184,0.8201,3884.8,3884.0,0.531715]
[1734037350332,0.8201,3884.8,3884.1,3.0]
[1734037350531,0.8201,3884.8,3884.0,0.531715]
[1734037350532,0.8201,3884.8,3884.3,2.31701]
[1734037350732,0.8201,3884.8,3884.0,0.531715]
[1734037350733,0.8201,3884.8,3884.0,2.31714]
[1734037352063,0.02574005,3884.7,3883.3,3.7852]
[1734037352264,0.8289,3884.5,3883.2,0.50464937]
[1734037352464,0.02574005,3884.4,3883.2,0.50464937]
[1734037352766,0.8289,3884.5,3883.4,2.3175]
[1734037352941,0.8289,3884.5,3883.5,2.31748]
[1734037353354,0.85464005,3884.5,3882.8,0.8299]
[1734037353537,0.8117,3884.2,3883.1,2.31772]
[1734037353753,0.83744005,3884.2,3883.1,2.31772]
[1734037353950,0.8117,3884.2,3883.1,2.31772]
[1734037354159,0.8117,3884.2,3883.2,2.31767]
[1734037354529,0.83744005,3884.2,3883.2,2.31767]
[1734037354841,0.34119501,3884.1,3883.2,2.31767]
[1734037355242,0.36693506,3884.1,3883.2,2.31767]
[1734037355439,0.34119501,3884.1,3883.2,2.31767]
[1734037355639,0.82404005,3884.0,3883.2,2.31767]
[1734037355879,0.7983,3883.8,3882.5,2.31809]
[1734037356026,0.8072,3883.4,3882.1,3.20441958]
[1734037356231,0.02574005,3883.3,3882.3,2.31817]
[1734037356497,0.8072,3883.5,3882.4,2.31812]
[1734037356675,2.60081005,3883.4,3882.1,5.52269958]
[1734037356858,3.36397,3883.4,3882.3,2.3182]
[1734037357065,0.33897101,3883.3,3882.3,2.3182]
[1734037357255,0.33897101,3883.3,3882.1,3.20441958]
[1734037357256,0.33897101,3883.3,3882.4,2.31814]
[1734037357655,0.7889,3883.2,3882.1,5.52269958]
[1734037357971,0.02574005,3883.1,3882.2,3.0]
[1734037358176,0.7889,3883.0,3882.3,2.31821]
[1734037359154,0.02574005,3882.9,3882.2,3.0]
[1734037359350,0.7889,3883.0,3882.2,3.0]
[1734037359971,1.15105805,3883.0,3882.2,3.0]
[1734037360225,0.7602,3882.9,3882.2,3.0]
[1734037360887,0.7602,3882.9,3882.3,2.3182]
[1734037361785,0.7602,3882.9,3882.2,3.0]
[1734037362770,0.8314,3883.6,3882.5,5.48017848]
[1734037363109,0.8314,3883.6,3883.1,2.31771]
[1734037363606,0.8314,3883.6,3882.6,3.85937459]
[1734037363757,0.8314,3883.6,3883.1,2.31772]
[1734037364402,0.8314,3883.6,3883.3,2.3176]
[1734037364703,0.78,3884.5,3883.0,0.8198]
[1734037364909,1.87598368,3884.5,3883.3,2.31756]
[1734037365074,0.7855,3884.4,3883.3,2.31756]
[1734037365400,0.7855,3884.4,3883.5,2.31744]
[1734037365603,1.80174191,3884.4,3883.6,2.31742]
[1734037366098,0.7855,3884.4,3883.6,0.0257493]
[1734037366400,3.22654695,3884.6,3884.5,2.3169]
[1734037367095,3.22654695,3884.6,3884.3,2.31701]
[1734037369498,3.22654695,3884.6,3884.1,2.31713]
[1734037369731,3.22654695,3884.6,3883.8,0.8206]
[1734037369732,3.22654695,3884.6,3883.8,2.31729]
[1734037369864,3.22654695,3884.6,3884.3,2.31696]
[1734037373466,3.22654695,3884.6,3884.0,2.31714]
[1734037373696,0.7546,3884.8,3884.0,5.31714]
[1734037373878,0.7546,3884.8,3884.1,2.31711]
[1734037374698,0.02574005,3884.7,3883.3,2.48017848]
[1734037374895,0.8234,3884.6,3883.9,2.31725]
[1734037375087,0.8234,3884.6,3884.0,2.31714]
[1734037375302,0.8234,3884.6,3883.4,0.32388785]
[1734037375512,0.8234,3884.6,3883.6,0.02574645]
[1734037375676,0.8234,3884.6,3884.0,2.31718]
[1734037376077,0.8234,3884.6,3883.8,3.0]
[1734037376297,0.8234,3884.6,3883.9,0.57633687]
[1734037376499,0.8234,3884.6,3884.0,3.0]
[1734037376699,0.8234,3884.6,3883.9,3.57633687]
[1734037376899,0.8234,3884.6,3884.2,2.31702]
[1734037377214,0.7711,3884.9,3884.4,2.31694]
[1734037377780,0.7711,3884.9,3884.2,2.31707]
[1734037379196,0.7711,3884.9,3884.0,3.0]
[1734037379401,0.7711,3884.9,3884.1,0.66567325]
[1734037379709,0.7711,3884.9,3884.3,2.31698]
[1734037380518,0.7711,3884.9,3884.1,0.66567325]
[1734037380718,0.7711,3884.9,3884.1,2.31712]
[1734037381114,0.7711,3884.9,3884.0,3.0]
[1734037381317,0.7711,3884.9,3883.6,5.31743]
[1734037381318,3.3452,3884.9,3883.6,5.31743]
[1734037381585,3.3452,3884.9,3883.7,3.0]
[1734037381586,0.7711,3884.9,3883.7,3.0]
[1734037381787,0.7711,3884.9,3884.0,2.31714]
[1734037382088,0.7711,3884.9,3884.3,2.31699]
[1734037382318,0.7711,3884.9,3884.1,3.0]
[1734037382497,0.7711,3884.9,3884.1,2.31711]
[1734037382707,0.7711,3884.9,3884.2,2.31705]
[1734037384080,0.02574005,3884.8,3883.4,3.32388785]
[1734037384332,0.8159,3884.7,3883.8,2.31731]
[1734037384536,0.02574005,3884.6,3883.8,2.31731]
[1734037384681,0.02574005,3884.6,3883.6,3.0]
[1734037384887,0.8159,3884.7,3884.0,2.31719]
[1734037385087,0.8159,3884.7,3883.6,3.0]
[1734037385344,0.8159,3884.7,3884.0,2.31714]
[1734037385652,0.8159,3884.7,3883.8,2.31729]
[1734037385940,0.8159,3884.7,3883.7,3.0]
[1734037386154,0.8159,3884.7,3884.0,2.31719]
[1734037386622,0.8159,3884.7,3883.8,2.3173]
[1734037386803,0.36473705,3884.6,3883.4,3.32388785]
[1734037387003,0.36473705,3884.6,3883.5,3.0]
[1734037387331,0.36473705,3884.6,3883.8,2.3173]
[1734037387332,0.338997,3884.6,3883.8,2.3173]
[1734037387517,0.02574005,3884.5,3883.8,2.3173]
[1734037388016,0.338997,3884.6,3883.8,2.3173]
[1734037388217,0.02574005,3884.5,3883.8,2.3173]
[1734037388749,0.7818,3884.4,3883.3,2.31756]
[1734037389046,0.7818,3884.2,3883.3,2.31756]
[1734037389338,0.02574005,3884.1,3882.8,0.8129]
[1734037389531,0.7818,3884.0,3882.8,0.8129]
[1734037389748,0.02574005,3883.9,3882.8,0.8129]
[1734037390045,0.02574005,3883.9,3882.4,2.31809]
[1734037390046,0.7799,3883.6,3882.6,2.31799]
[1734037390222,0.7799,3883.6,3882.3,0.50954331]
[1734037390223,0.02574005,3883.5,3882.3,0.50954331]
[1734037390441,0.7799,3883.4,3882.4,2.31814]
[1734037391039,0.7799,3883.4,3882.8,2.31791]
[1734037391210,0.7799,3883.4,3882.3,2.31817]
[1734037391410,0.7799,3883.4,3882.5,2.31803]
[1734037391816,0.7799,3883.4,3882.4,5.31815]
[1734037392005,0.7799,3883.4,3882.5,3.0]
[1734037392210,0.7799,3883.4,3882.5,2.31809]
[1734037394166,0.7799,3883.4,3882.6,2.31801]
[1734037394553,0.7799,3883.4,3883.3,2.31761]
[1734037394756,0.7939,3884.4,3883.3,0.7946]
[1734037394981,0.7939,3884.4,3883.4,3.02574867]
[1734037395183,0.7939,3884.4,3883.8,2.31727]
[1734037395955,0.7939,3884.4,3883.4,3.0]
[1734037396151,0.7939,3884.4,3883.6,2.31741]
[1734037396884,0.7939,3884.4,3883.7,2.31735]
[1734037397204,0.7939,3884.4,3883.4,0.62747785]
[1734037397205,0.7939,3884.4,3883.6,2.31743]
[1734037397409,0.7939,3884.4,3883.8,2.31728]
[1734037397560,0.7939,3884.4,3883.5,3.0]
[1734037397762,0.7939,3884.4,3883.8,2.31727]
[1734037398249,0.7939,3884.4,3883.6,0.67396279]
[1734037399221,0.7939,3884.4,3884.0,2.31719]
[1734037399359,0.7939,3884.4,3883.6,0.67396279]
[1734037399722,0.7939,3884.4,3884.2,2.31702]
[1734037400408,0.7939,3884.4,3883.3,3.11217]
[1734037400603,0.7716,3884.2,3882.6,1.39007847]
[1734037400808,0.7716,3884.2,3882.3,4.79833848]
[1734037400809,0.7716,3883.9,3882.8,2.31791]
[1734037400979,0.7716,3883.9,3882.5,2.31804]
[1734037400980,0.7716,3883.7,3882.5,2.31804]
[1734037401313,0.7716,3883.7,3882.1,3.14821]
[1734037401314,0.7716,3883.7,3882.6,2.318]
[1734037401475,0.7664,3883.5,3882.1,0.8299]
[1734037401727,0.7664,3883.5,3882.2,0.48816677]
[1734037402107,0.7664,3883.5,3882.5,2.31804]
[1734037402312,0.7664,3883.5,3882.9,2.31783]
[1734037403317,0.7664,3883.5,3883.0,2.31773]
[1734037403523,0.7664,3883.5,3882.8,3.0]
[1734037403718,0.7664,3883.5,3883.0,5.31776]
[1734037403966,0.7664,3883.5,3882.8,2.31789]
[1734037404311,0.7664,3883.5,3882.3,5.48017848]
[1734037404622,0.7664,3883.5,3883.0,2.31777]
[1734037404838,0.7664,3883.5,3882.3,5.48017848]
[1734037405032,0.02574005,3883.4,3882.0,3.5070608]
[1734037405235,0.8283,3883.3,3882.2,1.02000777]
[1734037405490,0.02574005,3883.2,3882.2,1.02000777]
[1734037405598,0.02574005,3883.2,3882.4,2.31812]
[1734037406064,0.8283,3883.3,3882.5,2.31808]
[1734037406234,0.02574005,3883.2,3882.5,2.31808]
[1734037406452,0.8283,3883.3,3882.5,2.31808]
[1734037406629,1.17119801,3883.3,3882.3,3.0]
[1734037406846,0.8283,3883.3,3882.7,2.31797]
[1734037407327,0.8283,3883.3,3882.4,2.48017848]
[1734037407521,0.8283,3883.3,3882.6,2.31802]
[1734037410442,0.8283,3883.3,3882.6,3.09492]
[1734037410763,0.8283,3883.3,3882.3,6.09507]
[1734037410918,0.8283,3883.3,3882.3,3.0]
[1734037411122,3.77210106,3883.3,3882.3,3.0]
[1734037411779,0.7787,3883.2,3882.2,2.31825]
[1734037412079,2.60105005,3883.1,3882.0,5.31837]
[1734037412387,2.57541,3882.9,3881.9,1.06452844]
[1734037412548,0.36907506,3882.8,3881.9,1.06452844]
[1734037413045,0.36907506,3882.8,3881.9,3.38295844]
[1734037413743,0.34333501,3882.8,3882.1,2.31833]
[1734037413926,0.8322,3883.0,3882.0,3.0]
[1734037414126,0.8322,3883.0,3882.2,2.31821]
[1734037414330,0.8322,3883.0,3882.0,3.0]
[1734037414584,0.8322,3883.0,3882.2,2.31823]
[1734037415676,0.8322,3883.0,3882.4,2.31812]
[1734037416368,0.8322,3883.0,3882.1,2.31828]
[1734037416592,0.02574005,3882.9,3881.9,1.06452844]
[1734037416790,0.769,3882.8,3881.9,1.06452844]
[1734037416985,0.769,3882.8,3882.2,2.31822]
[1734037419868,0.769,3882.8,3881.9,1.06452844]
[1734037420522,0.33444,3882.7,3881.9,1.06452844]
[1734037420681,0.8055,3882.6,3881.2,3.51903924]
[1734037420828,3.38111,3882.6,3881.6,2.31862]
[1734037421365,0.8055,3882.5,3881.5,2.31868]
[1734037422437,0.02574005,3882.9,3881.1,2.31893]
[1734037422438,0.8055,3882.3,3881.3,2.31879]
[1734037422740,2.60160005,3882.2,3881.1,2.31892]
[1734037422960,2.60160005,3882.2,3881.2,2.31886]
[1734037423152,0.8055,3882.1,3881.2,2.31886]
[1734037423822,0.8055,3882.1,3880.9,0.51054475]
[1734037424058,0.8055,3882.1,3881.5,2.31868]
[1734037424470,0.8055,3882.1,3881.3,2.31875]
[1734037424685,0.8055,3882.1,3881.4,3.0]
[1734037425945,0.8055,3882.1,3881.3,0.57969115]
[1734037426146,0.8055,3882.1,3881.2,3.0]
[1734037426390,0.8055,3882.1,3881.1,2.3189]
[1734037426591,0.8055,3882.1,3881.2,2.31885]
[1734037427081,2.57606,3881.9,3880.8,3.0]
[1734037427282,0.7568,3881.8,3880.8,2.31905]
[1734037427486,0.7568,3881.8,3880.9,3.0]
[1734037428015,0.02574005,3881.7,3880.8,2.31905]
[1734037429782,0.7827,3881.6,3880.6,2.31921]
[1734037430280,0.7827,3881.6,3880.4,3.7676]
[1734037430281,0.7827,3881.6,3880.5,3.0]
[1734037430502,0.7747,3882.1,3880.8,2.3191]
[1734037430791,0.7747,3882.1,3881.0,5.31898]
[1734037430990,0.7747,3882.1,3881.3,2.3188]
[1734037431146,0.7747,3882.1,3880.9,0.8018]
[1734037431147,0.7747,3882.1,3881.0,3.0]
[1734037431347,0.80044005,3882.1,3881.1,2.31891]
[1734037431547,0.80044005,3882.1,3881.2,3.0]
[1734037431548,0.7747,3882.1,3881.2,3.0]
[1734037431787,0.7747,3882.1,3881.4,2.31872]
[1734037433327,0.7747,3882.1,3881.0,3.0]
[1734037434132,0.7747,3882.1,3881.2,2.31882]
[1734037434329,0.7747,3882.1,3881.1,0.02576285]
[1734037434531,0.7747,3882.1,3881.5,2.31867]
[1734037434826,0.7747,3882.1,3881.3,2.31879]
[1734037434985,0.7747,3882.1,3881.3,5.31879]
[1734037435188,0.7747,3882.1,3881.2,0.84654928]
[1734037435419,0.7747,3882.1,3881.4,2.31873]
[1734037435627,0.7747,3882.1,3881.4,0.91652793]
[1734037435945,0.7747,3882.1,3880.8,3.0]
[1734037436232,3.35063,3882.1,3880.7,5.31912]
[1734037436601,3.35063,3882.1,3881.1,2.3189]
[1734037436929,0.7747,3882.1,3881.2,2.31886]
[1734037437130,0.7747,3882.1,3880.8,3.0]
[1734037437131,3.35063,3882.1,3881.0,2.31895]
[1734037437333,0.02574005,3882.0,3881.0,2.31895]
[1734037437541,0.02574005,3882.0,3881.1,3.0]
[1734037438232,2.60174005,3882.0,3881.1,3.0]
[1734037438432,0.7834,3881.9,3881.0,2.31895]
[1734037438634,0.7834,3881.9,3880.8,2.31906]
[1734037438635,3.38521005,3881.9,3880.8,2.31906]
[1734037438925,3.38521005,3881.9,3880.9,2.31903]
[1734037439230,0.7834,3881.8,3880.6,0.67723978]
[1734037439428,0.7834,3881.7,3880.6,0.67723978]
[1734037439727,0.7834,3881.7,3881.0,2.31897]
[1734037439935,0.7834,3881.7,3880.6,3.67723978]
[1734037440104,0.7834,3881.7,3880.8,2.31905]
[1734037442393,1.119357,3881.7,3880.8,2.31905]
[1734037442994,2.57638,3881.5,3880.2,1.06508808]
[1734037443333,0.8012,3881.3,3880.4,2.31928]
[1734037443539,0.02574005,3881.2,3880.4,2.31928]
[1734037443699,3.37779,3881.1,3880.2,1.06508808]
[1734037443900,0.02574005,3881.0,3880.2,1.06508808]
[1734037444099,0.7738,3880.7,3879.7,2.31972]
[1734037444303,0.7738,3880.5,3879.3,1.34284929]
[1734037444546,0.7738,3880.5,3879.4,2.31991]
[1734037445158,2.57702,3880.5,3879.4,2.31991]
[1734037445305,2.60283005,3880.4,3879.2,2.32002]
[1734037445502,0.7784,3880.1,3879.0,2.32017]
[1734037445695,0.7784,3880.1,3878.7,0.786]
[1734037445897,0.7784,3880.1,3879.3,2.31994]
[1734037446340,0.7784,3880.1,3878.9,2.32018]
[1734037446544,0.80414005,3880.0,3879.0,2.32016]
[1734037446701,3.71961106,3880.0,3878.7,3.1063]
[1734037446897,0.7784,3879.8,3878.7,2.3203]
[1734037447239,0.7784,3879.8,3878.5,2.32047]
[1734037447240,0.7784,3879.7,3878.5,2.32047]
[1734037447464,0.7784,3879.5,3878.5,2.32047]
[1734037447599,0.02574005,3879.4,3878.5,2.32047]
[1734037447800,0.7784,3879.3,3878.3,2.32059]
[1734037448002,0.02574005,3879.2,3878.3,2.32059]
[1734037448445,0.7623,3879.1,3878.5,2.32047]
[1734037448647,0.7623,3879.1,3877.7,0.51525926]
[1734037448648,0.7623,3878.8,3877.2,0.791]
[1734037448934,0.7623,3878.6,3877.8,2.32089]
[1734037449140,0.7623,3878.6,3877.2,3.27117848]
[1734037449338,0.02574005,3878.5,3877.6,2.32102]
[1734037449537,0.02574005,3878.5,3877.2,0.791]
[1734037449538,0.7623,3878.4,3877.2,0.791]
[1734037450044,0.7623,3878.4,3877.6,2.321]
[1734037450351,0.02574005,3878.3,3877.4,2.32111]
[1734037450643,0.7545,3878.2,3877.1,2.32129]
[1734037450841,0.02574005,3878.3,3876.5,1.32331762]
[1734037450842,0.7545,3878.0,3876.9,2.32143]
[1734037451001,0.7545,3877.9,3876.5,1.32331762]
[1734037451199,0.7545,3877.9,3877.2,2.32126]
[1734037451560,0.7545,3877.9,3876.7,0.51252982]
[1734037451707,0.7545,3877.9,3877.0,2.32136]
[1734037453656,0.02574005,3877.8,3876.7,2.32151]
[1734037453854,0.02574005,3877.8,3876.1,0.8174]
[1734037453855,2.57898,3877.5,3876.1,0.8174]
[1734037453998,2.48017848,3877.9,3876.4,2.32173]
[1734037453999,0.7796,3877.3,3876.4,2.32173]
[1734037454197,0.02574005,3877.2,3875.6,2.48017848]
[1734037454400,0.7762,3877.1,3875.9,2.322]
[1734037454660,0.7762,3877.1,3875.1,0.8018]
[1734037454661,0.7762,3876.9,3875.1,0.8018]
[1734037454951,0.7762,3876.7,3875.2,2.32246]
[1734037455102,0.7762,3876.7,3875.2,2.48017848]
[1734037455307,0.7762,3876.7,3875.9,2.32199]
[1734037455858,0.7762,3876.7,3875.4,2.32234]
[1734037455859,0.7762,3876.7,3876.0,2.32195]
[1734037456067,2.57848,3878.3,3876.1,2.34771994]
[1734037456347,2.57878,3877.8,3876.3,3.0]
[1734037456557,2.48017848,3878.1,3876.5,2.32168]
[1734037456558,0.8023,3877.6,3876.5,2.32168]
[1734037456864,0.85504005,3877.5,3876.5,2.32168]
[1734037457354,0.85504005,3877.5,3876.0,2.32193]
[1734037457355,0.8293,3877.5,3876.8,2.32146]
[1734037457855,0.82,3877.0,3874.9,2.32264]
[1734037458071,0.82,3876.8,3875.0,0.56306185]
[1734037458202,0.82,3876.8,3875.8,2.32209]
[1734037458407,0.82,3876.8,3876.1,2.32191]
[1734037458606,0.02574005,3877.1,3875.2,2.32246]
[1734037458607,0.8216,3876.7,3875.2,2.32246]
[1734037458806,0.8216,3876.5,3875.3,0.3391956]
[1734037459212,0.0226423,3876.4,3875.3,3.3391956]
[1734037459414,0.0226423,3876.4,3875.6,2.32221]
[1734037459837,0.8216,3876.5,3875.9,2.32202]
[1734037460404,0.8216,3876.5,3876.3,2.32177]
[1734037460956,0.8216,3876.5,3875.9,3.0]
[1734037460957,0.8216,3876.5,3876.1,2.32191]
[1734037461153,0.8216,3876.5,3876.2,2.32184]
[1734037462015,0.8216,3876.5,3875.5,3.8098]
[1734037462261,0.8216,3876.5,3876.0,2.32197]
[1734037462562,0.8216,3876.5,3875.7,5.32215]
[1734037462728,0.8216,3876.5,3876.2,2.32186]
[1734037463082,0.8216,3876.5,3875.3,2.6615756]
[1734037463083,0.0226423,3876.4,3875.3,0.3391956]
[1734037463369,0.36501953,3876.4,3875.5,2.32223]
[1734037463570,0.828,3876.3,3875.2,2.32243]
[1734037463719,0.36501953,3876.4,3875.2,2.32243]
[1734037463720,0.828,3876.1,3875.2,2.32243]
[1734037463917,0.0226423,3876.0,3875.2,2.32243]
[1734037464164,0.0226423,3876.0,3874.5,3.09043]
[1734037464165,0.828,3875.9,3874.5,3.09043]
[1734037464375,0.828,3875.7,3874.6,0.309043]
[1734037464869,0.828,3875.7,3874.7,2.32276]
[1734037465216,0.0226423,3875.6,3874.7,2.32276]
[1734037465413,0.828,3875.7,3874.6,2.78922148]
[1734037465680,0.828,3875.7,3875.1,2.32251]
[1734037466139,0.828,3875.7,3874.7,3.0]
[1734037466140,0.828,3875.7,3874.8,2.3227]
[1734037466421,0.7938,3876.2,3875.3,2.32238]
[1734037466652,0.7938,3876.2,3875.1,0.55]
[1734037466653,0.7938,3876.2,3875.1,3.55]
[1734037466851,0.7938,3876.2,3875.8,2.32209]
[1734037467054,0.7938,3876.2,3875.2,5.32246]
[1734037467055,0.7938,3876.2,3875.2,3.0]
[1734037467235,0.7938,3876.2,3875.9,2.32203]
[1734037467665,0.7938,3876.2,3875.4,2.32234]
[1734037467666,0.7938,3876.2,3876.1,2.32192]
[1734037467869,0.8105423,3877.2,3876.3,2.32178]
[1734037468035,0.32907208,3877.1,3876.0,2.32193]
[1734037468234,0.8105423,3877.0,3875.4,2.32234]
[1734037468446,0.7879,3877.0,3875.5,3.55]
[1734037468765,0.7879,3877.0,3876.3,2.32179]
[1734037469268,0.0226423,3876.9,3876.0,2.32192]
[1734037469512,2.57952,3876.7,3875.6,2.32221]
[1734037469792,2.48017848,3876.9,3875.4,2.32233]
[1734037469793,0.7879,3876.5,3875.4,2.32233]
[1734037470096,2.6022223,3876.6,3875.4,2.32233]
[1734037470097,0.8105423,3876.4,3875.4,2.32233]
[1734037470403,0.0226423,3876.3,3875.4,2.32231]
[1734037470566,0.8109,3876.2,3875.5,2.32227]
[1734037471976,0.8109,3876.2,3874.7,3.0]
[1734037472191,0.8109,3876.0,3875.2,2.32245]
[1734037474956,0.8335423,3876.0,3874.8,2.3227]
[1734037475157,0.8335423,3876.0,3875.1,2.32246]
[1734037475387,0.8335423,3876.0,3874.8,2.32266]
[1734037475596,0.8335423,3876.0,3874.2,0.52095847]
[1734037475597,0.8239,3875.6,3874.2,0.52095847]
[1734037475808,0.8239,3875.4,3874.4,2.3229]
[1734037476013,0.8239,3875.2,3874.1,2.32306]
[1734037476302,0.8239,3875.0,3874.1,2.32306]
[1734037476452,0.0226423,3874.9,3874.3,2.32299]
[1734037476656,0.8239,3875.0,3873.8,0.1639126]
[1734037476850,0.8239,3875.0,3874.3,2.32296]
[1734037477054,0.8239,3875.0,3874.2,2.32301]
[1734037477259,0.8465423,3875.0,3874.2,2.787635]
[1734037477509,0.8465423,3875.0,3874.2,2.32301]
[1734037478192,0.8465423,3875.0,3873.8,0.1639126]
[1734037478488,0.8239,3875.0,3873.8,0.1639126]
[1734037478659,0.8239,3875.0,3874.2,2.32302]
[1734037480079,0.8465423,3875.0,3874.2,2.32302]
[1734037480464,0.8465423,3875.0,3873.8,0.1639126]
[1734037480465,0.34270523,3874.9,3874.0,2.32317]
[1734037480665,0.8465423,3875.0,3873.9,0.8008]
[1734037480666,0.0226423,3874.8,3873.9,0.8008]
[1734037480966,0.7796,3876.4,3875.6,2.3222]
[1734037481168,0.7796,3876.4,3874.9,2.32264]
[1734037481362,0.7796,3876.4,3875.1,0.8008]
[1734037481564,0.7796,3876.4,3875.8,2.32204]
[1734037482018,0.7796,3876.4,3875.3,3.0]
[1734037482019,0.7796,3876.4,3875.6,2.3222]
[1734037482383,1.115513,3876.4,3875.6,2.3222]
[1734037483020,1.115513,3876.4,3875.5,2.32222]
[1734037483182,1.115513,3876.4,3875.7,2.32215]
[1734037483383,0.7796,3876.4,3875.7,2.32215]
[1734037484117,0.7796,3876.4,3875.2,3.0]
[1734037484324,2.57916,3877.3,3875.2,3.0]
[1734037484325,0.7675,3878.1,3875.8,2.48017848]
[1734037484540,0.7675,3877.7,3876.7,2.32156]
[1734037484844,0.7675,3877.7,3876.2,2.48017848]
[1734037484845,0.7675,3877.7,3877.0,2.32137]
[1734037485377,0.7675,3877.7,3877.1,2.32129]
[1734037485691,0.7675,3877.7,3876.8,2.32149]
[1734037485891,0.7675,3877.7,3876.6,2.48017848]
[1734037486279,0.7675,3877.7,3876.7,3.0]
[1734037486723,0.7675,3877.7,3877.0,2.32137]
[1734037487924,0.7675,3877.7,3876.7,3.0]
[1734037488092,0.7675,3877.7,3877.3,2.32119]
[1734037488293,0.7675,3877.7,3877.1,2.3213]
[1734037488523,0.7675,3878.2,3877.1,0.7846]
[1734037488822,0.7675,3878.2,3877.5,2.32105]
[1734037489319,0.7675,3878.2,3877.1,2.32128]
[1734037489525,0.7675,3878.2,3876.9,3.0]
[1734037489724,0.7675,3878.2,3877.3,2.32119]
[1734037489876,0.7675,3878.2,3876.9,0.85819033]
[1734037490519,0.7675,3878.2,3877.3,2.32119]
[1734037490900,0.7675,3878.2,3877.1,2.32131]
[1734037491407,0.7675,3878.2,3877.0,3.0]
[1734037491408,0.7675,3878.2,3877.2,2.32122]
[1734037491721,0.33685223,3878.1,3877.2,2.32122]
[1734037491920,0.33685223,3878.1,3877.0,2.32135]
[1734037492128,0.33685223,3878.1,3877.1,2.32128]
[1734037492336,1.07072829,3878.6,3876.6,3.55]
[1734037492337,3.34654,3877.9,3876.6,3.55]
[1734037492512,0.0226423,3877.8,3876.8,2.32149]
[1734037492710,0.0226423,3877.8,3876.8,5.32149]
[1734037492921,3.34654,3877.9,3876.8,5.32149]
[1734037493123,0.0226423,3877.8,3876.8,2.32149]
[1734037493427,0.7678,3877.9,3876.6,0.55]
[1734037493584,0.7678,3877.9,3876.5,2.87163]
[1734037493786,0.7678,3877.9,3876.6,3.0]
[1734037494640,0.7678,3877.9,3876.7,2.32156]
[1734037494933,0.7678,3877.9,3877.0,2.32136]
[1734037495780,0.7678,3877.9,3876.6,3.0]
[1734037495943,0.7678,3877.9,3877.0,2.32133]
[1734037496124,1.10470023,3877.9,3877.1,2.32131]
[1734037497392,0.0226423,3877.8,3877.1,2.32131]
[1734037497710,1.10470023,3877.9,3877.1,2.32131]
[1734037498317,1.12734253,3877.9,3877.1,2.32131]
[1734037498518,1.10470023,3877.9,3877.1,2.32131]
[1734037499091,0.37059325,3877.8,3877.1,2.32131]
[1734037499344,0.0226423,3877.7,3876.7,2.32154]
[1734037499520,0.824,3877.6,3876.7,2.32154]
[1734037499853,0.0226423,3877.5,3876.3,3.0]
[1734037499992,0.824,3877.6,3876.3,3.0]
[1734037500194,0.824,3877.6,3876.7,2.3215]
[1734037501462,0.0226423,3877.5,3876.3,3.0]
[1734037501593,0.8306,3877.3,3876.2,2.32185]
[1734037501816,0.0226423,3877.2,3876.2,2.32185]
[1734037502121,0.0226423,3877.2,3875.9,3.0]
[1734037502122,0.8306,3877.3,3876.4,2.32173]
[1734037502311,0.340969,3877.2,3876.5,2.32166]
[1734037502538,0.8306,3877.3,3876.5,2.32166]
[1734037502906,0.8306,3877.3,3876.3,2.32178]
[1734037503238,0.8306,3877.3,3876.4,2.32173]
[1734037503939,0.0226423,3877.2,3876.4,2.32173]